fUSD/lending_fUSD_20240408
["ID","MTS","AMOUNT","RATE_DAILY","PERIOD"]
[321832925,1712549452379,-150.0,0.00020788,2]
[321832926,1712549452389,-150.0,0.0002079,2]
[321832927,1712549452398,-150.0,0.00020793,2]
[321832928,1712549452407,-150.0,0.00020797,2]
[321832929,1712549452417,-150.0,0.00020801,2]
[321832930,1712549452426,-150.0,0.00020815,2]
[321832931,1712549452435,-150.0,0.00020826,2]
[321832932,1712549452444,-150.0,0.00020841,2]
[321832933,1712549452454,-150.0,0.00020845,2]
[321832934,1712549452463,-150.0,0.00020846,2]
[321832935,1712549452472,-150.0,0.0002086,2]
[321832936,1712549452481,-150.0,0.00020868,2]
[321832937,1712549452490,-150.0,0.00020873,2]
[321832938,1712549452500,-150.0,0.00020876,2]
[321832939,1712549452509,-150.0,0.00020879,2]
[321832940,1712549452519,-150.0,0.0002088,2]
[321832941,1712549452528,-150.0,0.00020886,2]
[321832942,1712549452537,-150.0,0.0002092,2]
[321832943,1712549452548,-150.0,0.00020927,2]
[321832944,1712549452557,-150.0,0.00020936,2]
[321832945,1712549452568,-150.0,0.00020947,2]
[321832946,1712549452577,-150.0,0.00020959,2]
[321832947,1712549452587,-150.0,0.00020962,2]
[321832948,1712549452597,-150.0,0.00020965,2]
[321832949,1712549452607,-150.0,0.00020973,2]
[321832950,1712549452617,-150.0,0.00020977,2]
[321832951,1712549452626,-150.0,0.00020987,2]
[321832952,1712549452635,-500.0,0.00020993,2]
[321832953,1712549452644,-4871.63510468,0.00021,2]
[321832954,1712549452692,-1.0238617,0.00021,2]
[321832955,1712549452704,-92691.87410171,0.00021,2]
[321832956,1712549452715,-1367.13313735,0.00021,2]
[321832957,1712549452888,-252.75509636,0.00020996,2]
[321832958,1712549452926,-0.02082015,0.00020996,2]
[321832959,1712549452940,-442.58969088,0.00020996,2]
[321832960,1712549452956,-1231.73338302,0.00020996,2]
[321832961,1712549452967,-2031.32117975,0.00020997,2]
[321832962,1712549453000,-2391.03190048,0.00020997,2]
[321832963,1712549545382,551.98337997,0.000297,120]
[321832964,1712549675737,5825.48,0.000297,120]
[321832965,1712549807305,11.2781052,0.00015123,2]
[321832966,1712549807324,361.0881052,0.00015123,2]
[321832967,1712549807345,361.0881052,0.00015123,2]
[321832968,1712549807365,361.0881052,0.00015123,2]
[321832969,1712549807386,361.0881052,0.00015123,2]
[321832970,1712549807406,361.0881052,0.00015123,2]
[321832971,1712549807426,361.0881052,0.00015123,2]
[321832972,1712549807445,361.0881052,0.00015123,2]
[321832973,1712549807465,361.0881052,0.00015123,2]
[321832974,1712549807485,361.0881052,0.00015123,2]
[321832975,1712549807508,163.32472933,0.00015123,2]
[321832976,1712549807651,3424.39578133,0.00015567,2]
[321832977,1712549808001,3424.39578133,0.0001572,2]
[321832978,1712549808347,3424.39578133,0.00015901,2]
[321832979,1712549808699,3424.39578133,0.0001622,2]
[321832980,1712549809044,3424.39578133,0.00016673,2]
[321832981,1712549809377,3424.39578133,0.00016855,2]
[321832982,1712549809701,3424.39578133,0.00017045,2]
[321832983,1712549810224,3424.39578133,0.00017429,2]
[321832984,1712549810347,3424.39578133,0.00017696,2]
[321832985,1712549891494,1910.57303646,0.00017696,2]
[321832986,1712549900840,1273.71535764,0.00017696,2]
[321832987,1712549937549,3424.39578133,0.00017051,2]
[321832988,1712549937882,3424.39578133,0.00017522,2]
[321832989,1712549938191,3424.39578133,0.00017688,2]
[321832990,1712549938601,3424.39578133,0.00017956,2]
[321832991,1712550055808,3424.39578134,0.00017923,2]
[321832992,1712550062361,328.65,0.00017715,2]
[321832993,1712550547489,312.21,0.00017622,2]
[321832994,1712550553108,-180.72667919,0.00018321,2]
[321832995,1712550553131,-342.50720573,0.00018322,2]
[321832996,1712550553150,-3424.39578134,0.00018325,2]
[321832997,1712550553169,-3424.39578134,0.00018439,2]
[321832998,1712550553188,-328.64906337,0.00018616,2]
[321832999,1712550556153,-3179.79608267,0.00018393,2]
[321833000,1712550556174,-452.10161733,0.00018616,2]
[321833001,1712550569315,-150.0,0.00018616,2]
[321833002,1712550569337,-150.0,0.00018616,2]
[321833003,1712550569359,-3179.79608267,0.00018655,2]
[321833007,1712550631529,-1750.0,0.00019,3]
[321833008,1712550631538,-2956.2270678,0.00019,2]
[321833009,1712550631551,-694.5729322,0.00019,2]
[321833010,1712550631562,-539.81291527,0.00019127,2]
[321833011,1712550631574,-1968.28270175,0.00019127,2]
[321833012,1712550631587,-671.70046565,0.00019127,2]
[321833013,1712550631596,-300.0,0.00019329,2]
[321833014,1712550631607,-150.0,0.00019329,2]
[321833015,1712550631619,-1662.78448716,0.0001933,2]
[321833016,1712550631698,-326.94545494,0.0001933,2]
[321833017,1712550631807,-256.20107005,0.0001933,2]
[321833018,1712550631862,-933.86507052,0.0001933,2]
[321833019,1712550631871,-1346.72180782,0.000195,2]
[321833026,1712550637764,-836.74878618,0.000195,2]
[321833027,1712550637773,-3179.79608267,0.00019556,2]
[321833028,1712550637784,-800.0,0.0001958,2]
[321833029,1712550637794,-810.22,0.00019671,2]
[321833030,1712550637803,-200.0,0.00019722,2]
[321833031,1712550637813,-3179.79608267,0.00019732,2]
[321833032,1712550637822,-312.21,0.00019886,2]
[321833033,1712550637832,-150.0,0.0002,2]
[321833034,1712550637842,-1500.0,0.0002,2]
[321833035,1712550637852,-3179.79608267,0.00020163,2]
[321833036,1712550637862,-152.3,0.00020192,2]
[321833037,1712550637871,-150.0,0.00020192,2]
[321833038,1712550637881,-150.0,0.00020192,2]
[321833039,1712550637890,-150.0,0.00020192,2]
[321833040,1712550637900,-150.0,0.00020192,2]
[321833041,1712550637909,-150.0,0.00020192,2]
[321833042,1712550637919,-150.0,0.00020192,2]
[321833043,1712550637928,-150.0,0.00020192,2]
[321833044,1712550637938,-150.0,0.00020192,2]
[321833045,1712550637947,-3179.79608267,0.00020383,2]
[321833046,1712550637956,-150.0,0.000205,2]
[321833047,1712550637966,-1500.0,0.000205,2]
[321833048,1712550637977,-3179.79608267,0.00020594,2]
[321833049,1712550637987,-160.42005369,0.000207,2]
[321833050,1712550637996,-160.76920017,0.000207,2]
[321833051,1712550638006,-300.0,0.00020725,2]
[321833052,1712550638015,-535.58,0.00020726,2]
[321833053,1712550638025,-153.46,0.00020726,2]
[321833054,1712550638035,-430.32,0.00020726,2]
[321833055,1712550638044,-349.0,0.00020726,2]
[321833056,1712550638054,-300.91,0.00020726,2]
[321833058,1712550638063,-349.0,0.00020726,2]
[321833060,1712550638077,-417.53,0.00020726,2]
[321833062,1712550638086,-519.99,0.00020726,2]
[321833064,1712550638095,-150.0,0.00020726,2]
[321833066,1712550638105,-417.53,0.00020726,2]
[321833068,1712550638114,-150.0,0.00020726,2]
[321833070,1712550638123,-349.0,0.00020726,2]
[321833072,1712550638133,-518.19,0.00020726,2]
[321833073,1712550638143,-417.53,0.00020726,2]
[321833074,1712550638152,-150.0,0.00020726,2]
[321833075,1712550638161,-150.0,0.00020727,2]
[321833076,1712550638170,-150.0,0.00020727,2]
[321833077,1712550638180,-160.42005366,0.00020729,2]
[321833078,1712550638189,-150.0,0.00020731,2]
[321833079,1712550638201,-150.0,0.00020731,2]
[321833080,1712550638209,-150.0,0.00020731,2]
[321833081,1712550638218,-150.0,0.00020731,2]
[321833082,1712550638228,-150.0,0.00020731,2]
[321833083,1712550638236,-150.0,0.00020732,2]
[321833084,1712550638245,-1500.0,0.00020732,2]
[321833085,1712550638254,-1500.0,0.00020732,2]
[321833086,1712550638264,-150.0,0.00020734,2]
[321833087,1712550638273,-150.0,0.00020736,2]
[321833088,1712550638283,-150.0,0.00020736,2]
[321833089,1712550638292,-150.0,0.00020739,2]
[321833090,1712550638301,-150.0,0.00020743,2]
[321833091,1712550638310,-150.0,0.00020745,2]
[321833092,1712550638319,-150.0,0.00020746,2]
[321833093,1712550638329,-150.0,0.00020748,2]
[321833094,1712550638338,-1500.0,0.00020752,2]
[321833095,1712550638347,-150.0,0.00020754,2]
[321833096,1712550638356,-150.0,0.00020755,2]
[321833097,1712550638366,-150.0,0.00020756,2]
[321833098,1712550638374,-160.42005366,0.00020757,2]
[321833099,1712550638383,-150.0,0.00020759,2]
[321833100,1712550638394,-150.0,0.00020763,2]
[321833101,1712550638405,-150.0,0.00020764,2]
[321833102,1712550638414,-319.31910494,0.0002077,2]
[321833103,1712550638424,-150.0,0.00020771,2]
[321833104,1712550638433,-1500.0,0.00020772,2]
[321833105,1712550638443,-150.0,0.00020773,2]
[321833106,1712550638453,-1500.0,0.00020773,2]
[321833107,1712550638462,-150.0,0.00020776,2]
[321833108,1712550638472,-150.0,0.00020776,2]
[321833109,1712550638481,-150.0,0.00020777,2]
[321833110,1712550638490,-150.0,0.00020778,2]
[321833111,1712550638500,-150.0,0.00020778,2]
[321833112,1712550638511,-150.0,0.00020779,2]
[321833113,1712550638521,-150.0,0.00020779,2]
[321833114,1712550638530,-150.0,0.00020779,2]
[321833115,1712550638540,-150.0,0.0002078,2]
[321833116,1712550638551,-1500.0,0.00020783,2]
[321833117,1712550638560,-236.69435009,0.00020785,2]
[321833118,1712550638572,-1500.0,0.00020785,2]
[321833119,1712550638582,-160.42005366,0.00020786,2]
[321833120,1712550638593,-150.0,0.00020786,2]
[321833121,1712550638603,-1500.0,0.00020787,2]
[321833122,1712550638616,-150.0,0.00020788,2]
[321833123,1712550638625,-210.98,0.0002079,2]
[321833124,1712550638636,-1500.0,0.00020791,2]
[321833125,1712550638645,-150.0,0.00020796,2]
[321833126,1712550638655,-150.0,0.00020797,2]
[321833127,1712550638664,-150.0,0.00020797,2]
[321833128,1712550638674,-150.0,0.00020799,2]
[321833129,1712550638683,-234.89503208,0.00020799,2]
[321833130,1712550638694,-250000.0,0.000208,2]
[321833131,1712550638703,-150.0,0.000208,2]
[321833132,1712550638712,-150.0,0.00020803,2]
[321833133,1712550638721,-150.0,0.00020805,2]
[321833134,1712550638730,-1500.0,0.00020805,2]
[321833135,1712550638739,-150.0,0.00020806,2]
[321833136,1712550638748,-150.0,0.00020807,2]
[321833137,1712550638757,-150.0,0.00020808,2]
[321833138,1712550638766,-150.0,0.0002081,2]
[321833139,1712550638776,-150.0,0.0002081,2]
[321833140,1712550638786,-150.0,0.0002081,2]
[321833141,1712550638794,-150.0,0.00020811,2]
[321833142,1712550638803,-1500.0,0.00020811,2]
[321833143,1712550638814,-150.0,0.00020812,2]
[321833144,1712550638824,-150.0,0.00020813,2]
[321833145,1712550638834,-160.42005366,0.00020814,2]
[321833146,1712550638844,-150.0,0.00020815,2]
[321833147,1712550638853,-150.0,0.00020817,2]
[321833148,1712550638862,-150.0,0.00020818,2]
[321833149,1712550638872,-1500.0,0.00020818,2]
[321833150,1712550638881,-500.0,0.00020821,2]
[321833151,1712550638890,-318.9306855,0.00020821,2]
[321833152,1712550638899,-500.0,0.00020821,2]
[321833153,1712550638908,-500.0,0.00020821,2]
[321833154,1712550638918,-500.0,0.00020821,2]
[321833155,1712550638927,-500.0,0.00020821,2]
[321833156,1712550638936,-500.0,0.00020821,2]
[321833157,1712550638945,-500.0,0.00020821,2]
[321833158,1712550638954,-500.0,0.00020821,2]
[321833159,1712550638963,-500.0,0.00020821,2]
[321833160,1712550638972,-500.0,0.00020821,2]
[321833161,1712550638981,-500.0,0.00020821,2]
[321833162,1712550638990,-500.0,0.00020821,2]
[321833163,1712550639000,-500.0,0.00020821,2]
[321833164,1712550639009,-500.0,0.00020821,2]
[321833165,1712550639018,-500.0,0.00020821,2]
[321833166,1712550639028,-500.0,0.00020821,2]
[321833167,1712550639038,-500.0,0.00020821,2]
[321833168,1712550639048,-500.0,0.00020821,2]
[321833169,1712550639057,-500.0,0.00020821,2]
[321833170,1712550639066,-500.0,0.00020821,2]
[321833171,1712550639075,-585.72327411,0.00020821,2]
[321833172,1712550639087,-150.0,0.00020821,2]
[321833173,1712550639098,-500.0,0.00020821,2]
[321833174,1712550639108,-558.48405533,0.00020821,2]
[321833175,1712550639117,-500.0,0.00020821,2]
[321833176,1712550639127,-500.0,0.00020821,2]
[321833177,1712550639137,-500.0,0.00020821,2]
[321833178,1712550639148,-500.0,0.00020821,2]
[321833179,1712550639157,-500.0,0.00020821,2]
[321833180,1712550639166,-500.0,0.00020821,2]
[321833181,1712550639175,-626.35,0.00020821,2]
[321833182,1712550639184,-557.45,0.00020821,2]
[321833183,1712550639193,-500.0,0.00020821,2]
[321833184,1712550639202,-475.8,0.00020821,2]
[321833185,1712550639211,-500.0,0.00020821,2]
[321833186,1712550639220,-500.0,0.00020821,2]
[321833187,1712550639230,-500.0,0.00020821,2]
[321833188,1712550639239,-500.0,0.00020821,2]
[321833189,1712550639250,-500.0,0.00020821,2]
[321833190,1712550639260,-367.21,0.00020821,2]
[321833191,1712550639270,-171.95,0.00020821,2]
[321833192,1712550639279,-476.68,0.00020821,2]
[321833193,1712550639288,-622.5,0.00020821,2]
[321833194,1712550639298,-1443.18,0.00020821,2]
[321833195,1712550639308,-500.0,0.00020821,2]
[321833196,1712550639317,-384.46,0.00020821,2]
[321833197,1712550639326,-240.44720094,0.00020821,2]
[321833198,1712550639335,-492.07,0.00020821,2]
[321833199,1712550639345,-500.0,0.00020821,2]
[321833200,1712550639355,-185.45,0.00020821,2]
[321833201,1712550639365,-500.0,0.00020821,2]
[321833202,1712550639376,-526.7,0.00020821,2]
[321833203,1712550639386,-500.0,0.00020821,2]
[321833204,1712550639396,-553.64,0.00020821,2]
[321833205,1712550639405,-571.35149455,0.00020821,2]
[321833206,1712550639415,-500.0,0.00020821,2]
[321833207,1712550639424,-387.44655576,0.00020821,2]
[321833208,1712550639435,-500.0,0.00020821,2]
[321833209,1712550639446,-1441.66,0.00020821,2]
[321833210,1712550639455,-500.0,0.00020821,2]
[321833211,1712550639465,-500.0,0.00020821,2]
[321833212,1712550639474,-500.0,0.00020821,2]
[321833213,1712550639484,-500.0,0.00020821,2]
[321833214,1712550639495,-500.0,0.00020821,2]
[321833215,1712550639504,-500.0,0.00020821,2]
[321833216,1712550639513,-500.0,0.00020821,2]
[321833217,1712550639522,-236.49,0.00020821,2]
[321833218,1712550639531,-500.0,0.00020821,2]
[321833219,1712550639540,-500.0,0.00020821,2]
[321833220,1712550639549,-500.0,0.00020821,2]
[321833221,1712550639560,-500.0,0.00020821,2]
[321833222,1712550639570,-500.0,0.00020821,2]
[321833223,1712550639580,-500.0,0.00020821,2]
[321833224,1712550639590,-500.0,0.00020821,2]
[321833225,1712550639600,-500.0,0.00020821,2]
[321833226,1712550639610,-517.28,0.00020821,2]
[321833227,1712550639621,-500.0,0.00020821,2]
[321833228,1712550639631,-500.0,0.00020821,2]
[321833229,1712550639642,-500.0,0.00020821,2]
[321833230,1712550639652,-150.0,0.00020827,2]
[321833231,1712550639662,-150.0,0.00020828,2]
[321833232,1712550639671,-150.0,0.00020829,2]
[321833233,1712550639682,-1532.40512474,0.00020829,2]
[321833234,1712550639693,-800.0,0.00020832,2]
[321833235,1712550639702,-500.0,0.00020832,2]
[321833236,1712550639711,-150.0,0.00020834,2]
[321833237,1712550639722,-150.0,0.00020834,2]
[321833238,1712550639732,-1500.0,0.00020835,2]
[321833239,1712550639742,-150.0,0.00020836,2]
[321833240,1712550639752,-1500.0,0.00020838,2]
[321833241,1712550639762,-150.0,0.00020841,2]
[321833242,1712550639773,-150.0,0.00020841,2]
[321833243,1712550639784,-150.0,0.00020841,2]
[321833244,1712550639793,-160.42005366,0.00020843,2]
[321833245,1712550639802,-150.0,0.00020843,2]
[321833246,1712550639813,-150.0,0.00020845,2]
[321833247,1712550639823,-150.0,0.00020847,2]
[321833248,1712550639832,-150.0,0.00020847,2]
[321833249,1712550639841,-1500.0,0.00020848,2]
[321833250,1712550639850,-150.0,0.00020854,2]
[321833251,1712550639860,-150.0,0.00020856,2]
[321833252,1712550639870,-150.0,0.00020857,2]
[321833253,1712550639879,-150.0,0.00020859,2]
[321833254,1712550639888,-150.0,0.00020859,2]
[321833255,1712550639898,-150.0,0.0002086,2]
[321833256,1712550639907,-150.0,0.00020861,2]
[321833257,1712550639916,-1500.0,0.00020861,2]
[321833258,1712550639926,-150.0,0.00020862,2]
[321833259,1712550639935,-150.0,0.00020866,2]
[321833260,1712550639944,-150.0,0.00020866,2]
[321833261,1712550639953,-1500.0,0.00020867,2]
[321833262,1712550639962,-150.0,0.00020868,2]
[321833263,1712550639971,-1500.0,0.00020868,2]
[321833264,1712550639981,-150.0,0.00020869,2]
[321833265,1712550639990,-160.42005366,0.00020871,2]
[321833266,1712550639998,-150.0,0.00020872,2]
[321833267,1712550640008,-150.0,0.00020872,2]
[321833268,1712550640017,-150.0,0.00020873,2]
[321833269,1712550640026,-150.0,0.00020874,2]
[321833270,1712550640036,-150.0,0.00020875,2]
[321833272,1712550640045,-150.0,0.00020876,2]
[321833273,1712550640054,-150.0,0.00020877,2]
[321833274,1712550640063,-150.0,0.00020877,2]
[321833275,1712550640072,-150.0,0.00020878,2]
[321833276,1712550640081,-150.0,0.0002088,2]
[321833277,1712550640090,-150.0,0.00020882,2]
[321833278,1712550640099,-150.0,0.00020885,2]
[321833279,1712550640109,-150.0,0.00020886,2]
[321833280,1712550640118,-150.0,0.00020887,2]
[321833281,1712550640127,-1500.0,0.0002089,2]
[321833282,1712550640136,-150.0,0.00020894,2]
[321833283,1712550640145,-6915.5,0.000209,2]
[321833284,1712550640154,-376.0,0.000209,2]
[321833285,1712550640164,-160.42005366,0.000209,2]
[321833286,1712550640173,-1500.0,0.00020901,2]
[321833287,1712550640181,-157.040813,0.00020908,2]
[321833288,1712550640190,-157.040813,0.00020908,2]
[321833289,1712550640199,-157.040813,0.00020908,2]
[321833290,1712550640208,-157.040813,0.00020908,2]
[321833291,1712550640217,-157.040813,0.00020908,2]
[321833292,1712550640226,-157.040813,0.00020908,2]
[321833293,1712550640235,-157.040813,0.00020908,2]
[321833294,1712550640244,-157.040813,0.00020908,2]
[321833295,1712550640254,-157.040813,0.00020908,2]
[321833296,1712550640263,-157.040813,0.00020908,2]
[321833297,1712550640273,-157.040813,0.00020908,2]
[321833298,1712550640282,-157.040813,0.00020908,2]
[321833299,1712550640290,-157.040813,0.00020908,2]
[321833300,1712550640299,-157.040813,0.00020908,2]
[321833301,1712550640309,-157.040813,0.00020908,2]
[321833302,1712550640318,-150.0,0.00020908,2]
[321833303,1712550640327,-150.0,0.00020909,2]
[321833304,1712550640336,-153.28189196,0.00020909,2]
[321833305,1712550640345,-150.0,0.00020914,2]
[321833306,1712550640354,-1500.0,0.00020916,2]
[321833307,1712550640363,-150.0,0.00020919,2]
[321833308,1712550640372,-150.0,0.0002092,2]
[321833309,1712550640382,-150.0,0.00020921,2]
[321833310,1712550640391,-150.0,0.00020923,2]
[321833311,1712550640400,-150.0,0.00020923,2]
[321833312,1712550640408,-150.0,0.00020931,2]
[321833313,1712550640417,-301.30710351,0.00020931,2]
[321833314,1712550640426,-303.43903029,0.00020932,2]
[321833315,1712550640435,-300.0,0.00020933,2]
[321833316,1712550640445,-1500.0,0.00020933,2]
[321833317,1712550640453,-150.0,0.00020935,2]
[321833318,1712550640463,-150.0,0.00020936,2]
[321833319,1712550640472,-150.0,0.0002094,2]
[321833320,1712550640482,-1500.0,0.0002094,2]
[321833321,1712550640491,-150.0,0.00020941,2]
[321833322,1712550640500,-150.0,0.00020946,2]
[321833323,1712550640509,-150.0,0.00020946,2]
[321833324,1712550640518,-150.0,0.00020948,2]
[321833325,1712550640527,-150.0,0.0002095,2]
[321833326,1712550640537,-150.0,0.0002095,2]
[321833327,1712550640547,-1500.0,0.00020952,2]
[321833328,1712550640556,-1500.0,0.00020953,2]
[321833329,1712550640564,-150.0,0.00020954,2]
[321833330,1712550640574,-1500.0,0.00020954,2]
[321833331,1712550640583,-150.0,0.00020955,2]
[321833332,1712550640592,-1500.0,0.00020955,2]
[321833333,1712550640601,-150.0,0.00020961,2]
[321833334,1712550640610,-150.0,0.00020961,2]
[321833335,1712550640623,-150.0,0.00020961,2]
[321833336,1712550640633,-150.0,0.00020962,2]
[321833337,1712550640643,-150.0,0.00020962,2]
[321833338,1712550640654,-1500.0,0.00020962,2]
[321833339,1712550640665,-150.0,0.00020963,2]
[321833340,1712550640675,-300.0,0.00020964,2]
[321833341,1712550640686,-1500.0,0.00020964,2]
[321833342,1712550640697,-150.0,0.00020965,2]
[321833343,1712550640706,-150.0,0.00020966,2]
[321833344,1712550640715,-1500.0,0.00020966,2]
[321833345,1712550640724,-150.0,0.00020967,2]
[321833346,1712550640734,-1500.0,0.00020967,2]
[321833347,1712550640743,-406.02904195,0.00020967,2]
[321833348,1712550640752,-150.0,0.00020968,2]
[321833349,1712550640761,-150.0,0.00020968,2]
[321833350,1712550640771,-150.0,0.0002097,2]
[321833351,1712550640781,-300.0,0.00020972,2]
[321833352,1712550640790,-150.0,0.00020973,2]
[321833353,1712550640799,-150.0,0.00020974,2]
[321833354,1712550640808,-1500.0,0.00020978,2]
[321833355,1712550640818,-150.0,0.00020979,2]
[321833356,1712550640827,-150.0,0.00020979,2]
[321833357,1712550640837,-150.0,0.00020982,2]
[321833358,1712550640845,-150.0,0.00020983,2]
[321833359,1712550640855,-151.30107013,0.00020984,2]
[321833360,1712550640865,-1500.0,0.00020984,2]
[321833361,1712550640875,-1500.0,0.00020984,2]
[321833362,1712550640885,-1500.0,0.00020984,2]
[321833363,1712550640894,-150.0,0.00020992,2]
[321833364,1712550640904,-9127.8996469,0.00020994,2]
[321833365,1712550640913,-1107.3199986,0.00020994,2]
[321833366,1712550640923,-282.2369588,0.00020994,2]
[321833367,1712550640932,-500.0,0.00020995,2]
[321833368,1712550640941,-500.0,0.00020995,2]
[321833369,1712550640951,-500.0,0.00020995,2]
[321833370,1712550640961,-500.0,0.00020995,2]
[321833371,1712550640971,-519.47,0.00020995,2]
[321833372,1712550641158,-500.0,0.00020995,2]
[321833373,1712550641169,-500.0,0.00020995,2]
[321833374,1712550641178,-500.0,0.00020995,2]
[321833375,1712550641187,-500.0,0.00020995,2]
[321833376,1712550641197,-500.0,0.00020995,2]
[321833377,1712550641206,-500.0,0.00020995,2]
[321833378,1712550641215,-500.0,0.00020995,2]
[321833379,1712550641225,-500.0,0.00020995,2]
[321833380,1712550641234,-500.0,0.00020996,2]
[321833381,1712550641243,-4343.78428211,0.00020996,2]
[321833382,1712550641252,-278.34132937,0.00020996,2]
[321833383,1712550641262,-1245.04429375,0.00020996,2]
[321833384,1712550641271,-1256.21701497,0.00020996,2]
[321833385,1712550641281,-1027.76665178,0.00020996,2]
[321833386,1712550641292,-1125.70996016,0.00020996,2]
[321833387,1712550641301,-2349.47845723,0.00020996,2]
[321833388,1712550641310,-448.61699795,0.00020996,2]
[321833389,1712550641318,-184.20781202,0.00020996,2]
[321833390,1712550641327,-2379.97270499,0.00020996,2]
[321833391,1712550641337,-526.7,0.00020996,2]
[321833392,1712550641346,-1441.66,0.00020996,2]
[321833393,1712550641356,-181.16539151,0.00020996,2]
[321833394,1712550641365,-226.21193761,0.00020996,2]
[321833395,1712550641375,-429.87169437,0.00020996,2]
[321833396,1712550641385,-500.0,0.00020996,2]
[321833397,1712550641395,-500.0,0.00020996,2]
[321833398,1712550641404,-500.0,0.00020996,2]
[321833399,1712550641414,-500.0,0.00020996,2]
[321833400,1712550641423,-500.0,0.00020996,2]
[321833401,1712550641433,-4312.83379518,0.00020997,2]
[321833402,1712550641442,-156.80512559,0.00020997,2]
[321833403,1712550641451,-1986.7556027,0.00020997,2]
[321833404,1712550641460,-500.0,0.00020997,2]
[321833405,1712550641470,-500.0,0.00020997,2]
[321833406,1712550641480,-500.0,0.00020997,2]
[321833407,1712550641490,-519.47,0.00020997,2]
[321833408,1712550641498,-500.0,0.00020997,2]
[321833409,1712550641508,-500.0,0.00020997,2]
[321833410,1712550641517,-500.0,0.00020997,2]
[321833411,1712550641526,-500.0,0.00020997,2]
[321833412,1712550641537,-345.69295654,0.00020997,2]
[321833413,1712550641545,-500.0,0.00020997,2]
[321833414,1712550641554,-500.0,0.00020997,2]
[321833415,1712550641563,-500.0,0.00020997,2]
[321833416,1712550641571,-500.0,0.00020997,2]
[321833417,1712550641581,-500.0,0.00020997,2]
[321833418,1712550641590,-500.0,0.00020997,2]
[321833419,1712550641598,-540.54842875,0.00020997,2]
[321833420,1712550641609,-500.0,0.00020997,2]
[321833421,1712550641622,-500.0,0.00020997,2]
[321833422,1712550641631,-500.0,0.00020997,2]
[321833423,1712550641640,-500.0,0.00020997,2]
[321833424,1712550641650,-500.0,0.00020997,2]
[321833425,1712550641659,-500.0,0.00020997,2]
[321833426,1712550641669,-500.0,0.00020997,2]
[321833427,1712550641678,-500.0,0.00020997,2]
[321833428,1712550641690,-500.0,0.00020997,2]
[321833429,1712550641701,-500.0,0.00020997,2]
[321833430,1712550641711,-500.0,0.00020997,2]
[321833431,1712550641720,-500.0,0.00020997,2]
[321833432,1712550641730,-500.0,0.00020997,2]
[321833433,1712550641739,-500.0,0.00020997,2]
[321833434,1712550641748,-500.0,0.00020997,2]
[321833435,1712550641758,-647.0557211,0.00020997,2]
[321833436,1712550641767,-500.0,0.00020997,2]
[321833437,1712550641777,-500.0,0.00020997,2]
[321833438,1712550641787,-500.0,0.00020997,2]
[321833439,1712550641797,-500.0,0.00020997,2]
[321833440,1712550641806,-500.0,0.00020997,2]
[321833441,1712550641815,-500.0,0.00020997,2]
[321833442,1712550641824,-150.0,0.00020997,2]